Cogmind - Beta 16.1 @@@ ROGUE MODE // 2026.04.10 @ 06:28:10 Player: Elxavo Result: Destroyed by A2-OEP(R) with Subdweller Machine Gun Performance ------------- Evolutions (0) 0 Regions Visited (2) 400 Robots Destroyed (21) 105 Value Destroyed (447) 447 Prototype IDs (0) 0 Alien Tech Used (0) 0 Bonus (-10) -10 TOTAL SCORE: 942 Bonus ------- Friendly Fire -10 Cogmind --------- Core Integrity 0/250 Matter 280/300 Energy 200/200 System Corruption 0% Temperature Cool (0) Movement Walking (260) Ox2 Location -10/Subcaves Parts ------- > --- POWER (1) -------- Subdweller Power Source > --- PROPULSION (2) --- Aluminum Leg Aluminum Leg > --- UTILITY (2) ------ High-capacity Storage Unit Seismic Detector > --- WEAPON (2) ------- Battle Rifle Subdweller Machine Gun > --- INVENTORY (20) --- Wheel Hover Unit Heat Sink Seismic Detector Seismic Detector Targeting Computer Light Armor Plating Light Assault Rifle Mining Laser Makeshift Spear Peak State ------------ > --- POWER ------------ Subdweller Power Source > --- PROPULSION ------- Aluminum Leg Aluminum Leg > --- UTILITY ---------- High-capacity Storage Unit Seismic Detector > --- WEAPON ----------- Battle Rifle Subdweller Machine Gun > --- INVENTORY -------- Wheel Hover Unit Heat Sink Seismic Detector Seismic Detector Targeting Computer Light Armor Plating Light Assault Rifle Mining Laser Makeshift Spear [Rating: 11] Favorites ----------- Power Ion Engine Engine Ion Engine Propulsion Light Treads Treads Light Treads Leg Aluminum Leg Utility Seismic Detector Device Seismic Detector Storage High-capacity Storage Unit Weapon Light Assault Rifle Energy Gun Medium Laser Ballistic Gun Light Assault Rifle Build | -11 -10 -10 ------- Run | Yrd Mat Sub Slots Evolved . | . . . Power . | . . . Propulsion . | . . . Utility . | . . . Weapon . | . . . Parts Attached 18 | 8 4 6 Power 3 | 1 1 1 Engine 3 | 1 1 1 Core . | . . . Reactor . | . . . Propulsion 5 | 2 . 3 Treads 2 | 2 . . Leg 3 | . . 3 Wheel . | . . . Hover . | . . . Flight . | . . . Utility 3 | 2 1 . Device 1 | 1 . . Storage 2 | 1 1 . Processor . | . . . Hackware . | . . . Protection . | . . . Artifact . | . . . Weapon 7 | 3 2 2 Energy Gun 2 | 2 . . Energy Cannon . | . . . Ballistic Gun 5 | 1 2 2 Ballistic Cannon . | . . . Launcher . | . . . Special Weapon . | . . . Impact Weapon . | . . . Slashing Weapon . | . . . Piercing Weapon . | . . . Special Melee Weapon . | . . . Unidentified Prototypes . | . . . Parts Lost 7 | . 2 5 Power 2 | . 1 1 Propulsion 3 | . . 3 Utility . | . . . Weapon 2 | . 1 1 Highest Loss Streak 3 | . 1 3 To Critical Strikes . | . . . Average Backups 8 | 3 8 10 Power . | . . . Propulsion 3 | 2 3 3 Utility 4 | . 3 5 Weapon 1 | . 1 1 Tool/Special . | . . . Unused Backups 9 | . . 9 Power . | . . . Propulsion 2 | . . 2 Utility 5 | . . 5 Weapon 2 | . . 2 Tool/Special . | . . . Average Slot Usage (%) 95 | . 100 91 Engine 10 | . 14 7 Treads 20 | . 28 14 Leg 7 | . . 13 Device 14 | . 14 14 Storage 14 | . 14 14 Energy Gun 2 | . 6 . Ballistic Gun 24 | . 21 26 Peak Build Rating 11 | 7 8 11 Average Rating 7 | 6 7 7 On Entrance 5 | . 7 8 Avg Prop Armor Cover (%) 14 | . . 14 Naked Turns . | . . . Heaviest Build 52 | 15 49 52 Greatest Support 40 | 40 40 40 Greatest Overweight (x) 4 | 1 1 4 Average Overweight (x) . | . . 1 Largest Inventory Capacity 20 | 8 20 20 Average Capacity 15 | 7 10 20 Most Carried 11 | 7 11 11 Average Carried 8 | 4 8 10 Final Capacity 20 | 8 20 20 Final Carried 11 | 7 11 10 Class Distribution -------------------- 100% | Mutant Dominant Class ---------------- Mutant | -10/Materials Mutant | -10/Subcaves Resources | -11 -10 -10 ----------- Run | Yrd Mat Sub Matter Collected 572 | 262 198 112 Remotely . | . . . Salvage Created 568 | 54 304 210 Parts 46 | 9 21 16 Haulers Intercepted . | . . . Recyclers Shooed . | . . . Parts Field Recycled . | . . . Retrieved Matter . | . . . Parts Self-Destructed 15 | . . 15 Prevented . | . . . Parts Restored . | . . . Kills | -11 -10 -10 ------- Run | Yrd Mat Sub Combat Hostiles Destroyed 17 | . 10 7 Guns 17 | . 10 7 Classes Destroyed 5 | 1 3 1 Tunneler 3 | 3 . . Watcher 1 | . 1 . Swarmer 8 | . 5 3 Grunt 5 | . 5 . Subdweller 4 | . . 4 Best Kill Streak 4 | 1 4 3 Combat Bots Only 4 | . 4 3 Max Kills in Single Turn 1 | 1 1 1 Gunslinging . | . . . Exploded . | . . . Melee . | . . . Uniques/NPCs Destroyed . | . . . Combat | -11 -10 -10 -------- Run | Yrd Mat Sub Hostile Shots Fired 120 | . 56 64 Missed 26 | . 12 14 Hits 94 | . 44 50 Projectile 94 | . 44 50 Damage Taken 1348 | . 445 903 Core 254 | . 71 183 Absorbed by Shields . | . . . Core Remaining (%) 100 | 100 . . Volleys Fired 79 | 11 33 35 Largest 2 | 2 2 2 Hottest 70 | 70 70 55 Shots Fired 141 | 18 66 57 Gun 141 | 18 66 57 Cannon . | . . . Launcher . | . . . Special . | . . . Kinetic 128 | 7 64 57 Thermal 13 | 11 2 . Explosive . | . . . Electromagnetic . | . . . Robot Hit Streak 9 | 5 9 8 Robot Miss Streak 3 | 2 3 3 Penetration Max . | . . . Secondary Targets 3 | . 2 1 Max Gunslinging Chain 1 | . 1 1 Shots Hit Robots 90 | 10 41 39 Core Hits 39 | 4 20 15 Critical Kills . | . . . Critical Parts Destroyed 1 | . 1 . Critical Strikes 4 | 3 1 . Burn 3 | 3 . . Destroy 1 | . 1 . Melee Attacks . | . . . Impact . | . . . Slashing . | . . . Piercing . | . . . Sneak Attacks . | . . . Combat Hostiles . | . . . Follow-up Attacks . | . . . Damage Inflicted 943 | 139 423 381 Guns 943 | 139 423 381 Cannons . | . . . Explosions . | . . . Melee . | . . . Ramming . | . . . Kinetic 818 | 40 397 381 Thermal 125 | 99 26 . Explosive . | . . . Electromagnetic . | . . . Impact . | . . . Slashing . | . . . Piercing . | . . . Highest Corruption . | . . . Average Corruption . | . . . Corruption Purged . | . . . Corruption Blocked . | . . . Overload Shots . | . . . Overflow Damage . | . . . Projectiles . | . . . Explosions . | . . . Melee . | . . . Knockbacks . | . . . Impact . | . . . Kinetic . | . . . Secondary . | . . . Self-Inflicted Damage . | . . . Shots . | . . . Rammed . | . . . Targets Rammed . | . . . Kicked . | . . . Crushed . | . . . Highest Temperature 40 | 40 18 . Average Temperature 12 | 16 7 . Received Heat Transfer 396 | . 198 198 Siege Activations . | . . . Martial Activations . | . . . Shielding Activations . | . . . Robots Disrupted . | . . . Combat Hostiles . | . . . Robots Corrupted . | . . . Combat Hostiles . | . . . Parts Fried . | . . . Impact Corruptions . | . . . Robots Melted . | . . . Combat Hostiles . | . . . Parts Melted 3 | 1 . 2 Heat Transferred 592 | 518 74 . Parts Sabotaged . | . . . Parts Stolen . | . . . Parts Stripped . | . . . Power Chain Reactions . | . . . Alert | -11 -10 -10 ------- Run | Yrd Mat Sub Maximum Alert Level . | . . . Low Security (%) 100 | 100 100 . Level 1 . | . . . Level 2 . | . . . Level 3 . | . . . Level 4 . | . . . Level 5 . | . . . High Security . | . . . Max Security . | . . . Peak Influence 90 | 5 90 . Initial . | . . . Average 24 | 1 28 . Influence Increases 345 | 15 260 70 Destroy 0b10 Robot/C 260 | . 200 60 Destroy 0b10 Robot/NC 20 | 15 5 . Destroy Leader 42 | . 32 10 Successful Hack 7 | . 7 . Destroy Structure 1 | . 1 . Lose Combat Pursuer 15 | . 15 . Influence Decreases 345 | 15 208 122 Entered New Map 26 | . . 26 Time Decay 299 | 15 188 96 Lost Part 20 | . 20 . Squads Dispatched 2 | . 2 . Investigation 1 | . 1 . Extermination . | . . . Reinforcement 1 | . 1 . Assault . | . . . Garrison . | . . . Intercept . | . . . Searches Triggered . | . . . Construction Impeded . | . . . Haulers Reinforced . | . . . Active Scanning Responses . | . . . Cargo Convoy Interrupts . | . . . Stealth | -11 -10 -10 --------- Run | Yrd Mat Sub Distress Signals 1 | . 1 . Communications Jammed . | . . . Distress Signals . | . . . Times Spotted 26 | . 18 8 Peak Tracking Total 6 | . 6 3 Tactical Retreats 1 | . 1 . Traps | -11 -10 -10 ------- Run | Yrd Mat Sub Traps Triggered 1 | . 1 . Indirectly . | . . . Trap Hack Attempts . | . . . Triggered . | . . . Disarmed . | . . . Reprogrammed . | . . . Reused . | . . . Traps Extracted . | . . . Installed . | . . . Triggered . | . . . Machines | -11 -10 -10 ---------- Run | Yrd Mat Sub Machines Disabled . | . . . Max in Single Turn . | . . . Machines Repaired . | . . . Machines Dismantled . | . . . Machines Sabotaged . | . . . Overloaded Fab Kills . | . . . Hacking | -11 -10 -10 --------- Run | Yrd Mat Sub Machines Accessed 3 | . 3 . Terminals 2 | . 2 . Fabricators . | . . . Repair Stations . | . . . Recycling Units 1 | . 1 . Scanalyzers . | . . . Garrison Access . | . . . Total Hacks 8 | . 8 . Successful 3 | . 3 . Failed 5 | . 5 . Catastrophic . | . . . Database Lockouts . | . . . Manual . | . . . Terminals 7 | . 7 . Fabricators . | . . . Repair Stations . | . . . Recycling Units 1 | . 1 . Scanalyzers . | . . . Garrison Access . | . . . Terminal Hacks 2 | . 2 . Branch Access Points 1 | . 1 . Zone Layout 1 | . 1 . Fabricator Hacks . | . . . Repair Station Hacks . | . . . Recycling Unit Hacks 1 | . 1 . Report Inventory 1 | . 1 . Scanalyzer . | . . . Garrison Access Hacks . | . . . Unauthorized Hacks . | . . . Terminals . | . . . Fabricators . | . . . Repair Stations . | . . . Recycling Units . | . . . Scanalyzers . | . . . Garrison Access . | . . . Data Cores Recovered . | . . . Used . | . . . Hacking Detections 2 | . 2 . Full Trace Events . | . . . Feedback Events . | . . . Feedback Blocked . | . . . Robot Schematics Acquired . | . . . Robots Built . | . . . Authchips . | . . . Time . | . . . Total Robot Build Rating . | . . . Part Schematics Acquired . | . . . Parts Built . | . . . Authchips . | . . . Time . | . . . Total Part Build Rating . | . . . Part Studies Acquired . | . . . Parts Repaired . | . . . Time . | . . . Parts Recycled . | . . . Recycled Matter . | . . . Retrieved Matter . | . . . Retrieved Components . | . . . Parts Scanalyzed . | . . . Part Schematics Acquired . | . . . Parts Damaged . | . . . Bothacking | -11 -10 -10 ------------ Run | Yrd Mat Sub Used RIF Installer . | . . . Robots Hacked . | . . . Non-combat . | . . . Combat . | . . . Robot Hacks Applied . | . . . Relay Couplers Released . | . . . Fabnet Peak Effective % . | . . . Robots Rewired . | . . . Allies Hacked . | . . . Hacks Repelled . | . . . Allies | -11 -10 -10 -------- Run | Yrd Mat Sub Total Allies . | . . . Largest Group . | . . . Highest-Rated Group . | . . . Highest-Rated Ally . | . . . Total Orders . | . . . Ally Attacks . | . . . Total Damage . | . . . Kills . | . . . Allies Corrupted . | . . . Allies Melted . | . . . Intel | -11 -10 -10 ------- Run | Yrd Mat Sub Active Infowar (turns) 2399 | 88 994 1317 Seismic 2399 | 88 994 1317 Robot Analysis Total . | . . . Derelict Logs Recovered 1 | . . 1 Drone Launches . | . . . Drone Recoveries . | . . . Exploration | -11 -10 -10 ------------- Run | Yrd Mat Sub Turns Passed 2463 | 152 994 1317 Spaces Moved 886 | 67 342 477 Core 2 | 2 . . Treads 652 | 65 342 245 Legs 232 | . . 232 Wheels . | . . . Hover . | . . . Flight . | . . . Fastest Speed 50 | 50 160 240 Average Speed 218 | 157 178 255 Slowest Speed 400 | 160 240 400 Overloaded Moves . | . . . Propulsion Burnouts . | . . . Robots Hopped . | . . . Potential Cave-ins . | . . . Cave-ins Triggered . | . . . Exploration Rate (%) 29 | 4 50 33 Regions Visited 2 Branch Regions 1 Pre-discovered Areas 1 | . . 1 Known Exits Taken . | . . . Unknown Exits Taken 2 | 1 1 . Scrap Searched 8 | . . 8 Spaces Dug . | . . . Terrain Destroyed . | . . . Melee . | . . . Projectile . | . . . AOE . | . . . Terrain Rammed . | . . . Walls Destroyed . | . . . Machines Disabled . | . . . Actions | -11 -10 -10 --------- Run | Yrd Mat Sub Total 1289 | 92 669 528 Wait 287 | . 281 6 Move 884 | 66 341 477 Hop . | . . . Pick Up 18 | 7 7 4 Fast Attach 8 | 7 1 . Attach 7 | . 2 5 Detach . | . . . Swap 3 | 1 1 1 Drop 3 | . 3 . Fire 79 | 11 33 35 Melee . | . . . Ram . | . . . Kick . | . . . Crush . | . . . Escape Stasis . | . . . Rewire . | . . . Trap . | . . . Miscellaneous . | . . . Route ------- -11/Scrapyard -10/Materials (discovered 3 exits: *Min x2 / [*Sub]) -10/Subcaves History --------- Turn | Location | Event 6 | -11/Scrapyard | Discovered new exit (range 16) 153 | -11/Scrapyard | Entered Materials 306 | -10/Materials | Build established: Mutant 595 | -10/Materials | Identified exit to Mines 1125 | -10/Materials | Discovered new exit (range 10) 1147 | -10/Materials | Entered Subcaves 1148 | -10/Subcaves | Approached by a straggling Scientist 1461 | -10/Subcaves | Learned location of 1 exit from Materials 1709 | -10/Subcaves | Learned location of Zion (-7) 1709 | -10/Subcaves | Met a Zionite searching for "candidates" 1783 | -10/Subcaves | Core integrity fell below 50% 1890 | -10/Subcaves | Core integrity fell below 20% 1899 | -10/Subcaves | Lost 3 parts (1p2n) 2464 | -10/Subcaves | Destroyed by A2-OEP(R) with Subdweller Machine Gun Last Messages --------------- 01920_ Searching scrap... 01920_ Found Mak. Spear. 01920_ Found 33 Matter. 01922_ Searching scrap... 01922_ Found Battle Rifle. 01922_ Found Sub. Power Source. 01922_ Found 64 Matter. 01933_ Acquired Mak. Spear. 01936_ Searching scrap... 01936_ Found Scrap Shield. 01936_ Found Piercing Trap. 01936_ Found 34 Matter. 01942_ Subatomizers dissect the Sub. Power Source. 02421_ AZ-CCG(R) destroyed. 02427_ Lgt. Ion Engine fries itself beyond repair. 02432_ Acquired 16 matter. 02437_ Acquired Sub. Power Source. 02439_ Acquired 10 matter. 02444_ Acquired Sub. Machine Gun. 02457_ NI-5A1(R) destroyed. Map ----- +----------------------------------------------------+ | ?????????????????????????????????????????????????? | | ?????????????????????????????????????????????????? | | ?????????????????????????????????????????????????? | | ?????????????????????????????????????????????????? | | ?????????????????????????????????????????????????? | | ?????????????????????????????????????????????????? | | ?????????????????????????????????????????????????? | | ?????????????????????????????????????????????????? | | ?????????????????????????????????????????????????? | | ?????????????????????????????????????????????????? | | ?????????????????????????????????????????????????? | | ?????????????????????????????????????????????????? | | ?????????????????????????????????????????????????? | | ?????????????????????????????????????????????????? | | ?????????????????????????????????????????????????? | | ?????????????????????????????????????????????????? | | ?????????????????????????????????????????????????? | | ?????????????????????????????????????????????????? | | ??????????????????????????????#??????????????????? | | ???????????????????????###??? ##?????????????????? | | ???????????????????????# #### ????????????????### | | ???????????????????????# ## ###??????????????# # | | ????????????????##???### ### #?????#######?## | | ????????????????# %=##= """ ####?## # ### | | ????????????????# "%&!"""""=& ### | | ??????????????# ""!R @" &%! ## ## | | ??????????????" ##""#### &## # # ## | | ?????????????????????????## ### ##? | | ??????????????????????????# #?## #?? | | ?????????????????????????# #?## # # ## #? | | ?????????????????????????## #??###############? | | ??????????????????????????## #????????????????? | | ???????????????????????????# #????????????????? | | ???????????????????????????# ##????????????????? | | ???????????????????????????# #?????????????????? | | ??????????????????????????? ?????????????????? | | ??????????????????????????? ?????????????????? | | ???????????????????????????## ????????????????? | | ?????????????????????????????# ????????????????? | | ??????????????????????????????# ???????????????? | | ???????????????????????????????##????????????????? | | ?????????????????????????????????????????????????? | | ?????????????????????????????????????????????????? | | ?????????????????????????????????????????????????? | | ?????????????????????????????????????????????????? | | ?????????????????????????????????????????????????? | | ?????????????????????????????????????????????????? | | ?????????????????????????????????????????????????? | | ?????????????????????????????????????????????????? | | ?????????????????????????????????????????????????? | +----------------------------------------------------+ Best States ------------- Heat Dissipation 25 Energy Generation 15 Energy Capacity 250 Matter Stores 300 Matter Capacity 300 Sight Range 16 Terrain Scan Density 10 Evasion (%) 40 Recoil Reduction 2 Item Schematics ----------------- None Robot Schematics ------------------ None Fabricated ------------ Nothing Repaired ---------- Nothing Studied --------- None Alien Tech Used ----------------- None Achievements -------------- None Challenges ------------ None Game ------ Seed AmuletMultireflexMegashotty Manual? 0 Play Time 00:19:28 Cumulative 65.6 hours Start 2026.04.10 @ 06:11:04 End 2026.04.10 @ 06:28:10 Sessions 1 Manual Loads 0 Difficulty Rogue Special Mode None Game No. 84 Rogue 84 Adventurer 0 Explorer 0 Win Type - Total 0 Types 0/0/0/0/0/0/0/0/0/0 Lore% 30 Gallery% 23 Achievement% 17 Wizard Run 0 Options --------- Layout 0 ASCII 0 Keyboard 0 Movement Mouse Keybinds 0 Fullscreen 1 Font 18/SmallcapsGlow Map View 76x50 Zoom Use 0% Tactical HUD 1 Map Filters NONE Filters LOW_CONTRAST(13,24,33) Steam 1 RUN: 59621e19-cb46-4876-b91f-88ae0d2b7871